fUST/lending_fUST_20250713
["ID","MTS","AMOUNT","RATE_DAILY","PERIOD"]
[371568185,1752357063661,-249.37626,0.00020549,2]
[371568186,1752357063671,-249.37626,0.00020549,2]
[371568187,1752357063680,-4705.72,0.000206,2]
[371568188,1752357063690,-842.53,0.000206,2]
[371568189,1752357063700,-34784.13,0.000206,2]
[371568190,1752357063710,-151.0,0.000206,2]
[371568191,1752357063720,-151.0,0.000206,2]
[371568192,1752357063729,-4000.0,0.00020608,2]
[371568193,1752357063739,-3924.06288853,0.00020624,3]
[371568194,1752357063748,-593.403,0.00020628,2]
[371568195,1752357063758,-214.25614385,0.0002063,3]
[371568196,1752357063768,-5000.0,0.00020659,2]
[371568197,1752357063778,-221.648769,0.00020762,3]
[371568198,1752357063787,-221.648769,0.00020777,2]
[371568199,1752357063796,-647.0,0.00020783,2]
[371568200,1752357063806,-2154.0,0.00020783,2]
[371568201,1752357063815,-460.0,0.00020821,2]
[371568202,1752357063825,-460.0,0.00020821,2]
[371568203,1752357063834,-598.62,0.00020821,2]
[371568204,1752357063844,-460.0,0.00020821,2]
[371568205,1752357063853,-151.79,0.00020821,2]
[371568207,1752357063863,-1796.12,0.00020821,2]
[371568209,1752357063872,-460.0,0.00020821,2]
[371568211,1752357063882,-1833.61,0.00020821,2]
[371568213,1752357063891,-460.0,0.00020821,2]
[371568215,1752357063900,-3698.67,0.00020821,2]
[371568217,1752357063909,-726.0,0.00020821,2]
[371568219,1752357063919,-2274.87,0.00020821,2]
[371568221,1752357063928,-699.31,0.00020821,2]
[371568223,1752357063937,-995.78,0.00020821,2]
[371568225,1752357063947,-460.0,0.00020821,2]
[371568227,1752357063958,-648.79,0.00020821,2]
[371568239,1752357064055,-647.47,0.00020821,2]
[371568241,1752357064075,-1247.94,0.00020821,2]
[371568243,1752357064085,-813.18,0.00020821,2]
[371568245,1752357064095,-488.22,0.00020821,2]
[371568247,1752357064104,-561.31,0.00020821,2]
[371568249,1752357064114,-460.31,0.00020821,2]
[371568251,1752357064123,-470.2,0.00020821,2]
[371568253,1752357064133,-3681.33,0.00020821,2]
[371568255,1752357064143,-3587.3,0.00020821,2]
[371568257,1752357064153,-479.83,0.00020821,2]
[371568259,1752357064162,-2620.87,0.00020821,2]
[371568261,1752357064172,-666.55,0.00020821,2]
[371568263,1752357064182,-513.37,0.00020821,2]
[371568265,1752357064192,-2216.81,0.00020821,2]
[371568267,1752357064202,-518.4,0.00020821,2]
[371568269,1752357064214,-460.0,0.00020821,2]
[371568271,1752357064225,-548.97,0.00020821,2]
[371568273,1752357064234,-460.0,0.00020821,2]
[371568275,1752357064244,-605.1,0.00020821,2]
[371568277,1752357064254,-3142.18,0.00020821,2]
[371568279,1752357064264,-460.0,0.00020821,2]
[371568281,1752357064273,-460.0,0.00020821,2]
[371568283,1752357064283,-5920.24,0.00020821,2]
[371568285,1752357064294,-875.58,0.00020821,2]
[371568287,1752357064303,-556.21,0.00020821,2]
[371568289,1752357064313,-5429.91,0.00020821,2]
[371568291,1752357064323,-460.0,0.00020821,2]
[371568293,1752357064332,-460.0,0.00020821,2]
[371568295,1752357064342,-460.0,0.00020821,2]
[371568297,1752357064352,-460.0,0.00020821,2]
[371568299,1752357064360,-634.32,0.00020821,2]
[371568301,1752357064370,-1846.78,0.00020821,2]
[371568303,1752357064380,-151.0,0.00020921,2]
[371568305,1752357064390,-208.720933,0.00020921,2]
[371568307,1752357064399,-151.0,0.00020921,2]
[371568309,1752357064408,-208.720933,0.00020921,2]
[371568311,1752357064418,-151.0,0.00020921,2]
[371568313,1752357064427,-151.0,0.00020921,2]
[371568315,1752357064436,-158.938451,0.00020921,2]
[371568317,1752357064446,-158.938451,0.00020921,2]
[371568319,1752357064455,-1074.333574,0.00020921,2]
[371568320,1752357064465,-1074.333574,0.00020921,2]
[371568322,1752357064474,-3924.06288853,0.00020934,4]
[371568325,1752357064486,-5502.71686863,0.00020963,2]
[371568327,1752357064495,-576.333126,0.00020986,2]
[371568329,1752357064504,-151.0,0.00021,4]
[371568331,1752357064514,-151.0,0.00021003,2]
[371568333,1752357064523,-151.0,0.00021003,2]
[371568335,1752357064533,-765.143976,0.00021016,2]
[371568336,1752357064542,-765.143976,0.00021016,2]
[371568339,1752357064552,-2000.0,0.00021016,2]
[371568340,1752357064561,-156.19728545,0.00021068,2]
[371568342,1752357064571,-460.0,0.00021095,2]
[371568344,1752357064580,-460.0,0.00021095,2]
[371568347,1752357064590,-598.62,0.00021095,2]
[371568348,1752357064600,-151.0,0.00021095,2]
[371568350,1752357064609,-460.0,0.00021095,2]
[371568353,1752357064619,-1796.12,0.00021095,2]
[371568354,1752357064629,-460.0,0.00021095,2]
[371568356,1752357064639,-1833.61,0.00021095,2]
[371568358,1752357064648,-460.0,0.00021095,2]
[371568360,1752357064658,-3698.67,0.00021095,2]
[371568362,1752357064668,-726.0,0.00021095,2]
[371568365,1752357064677,-2274.87,0.00021095,2]
[371568367,1752357064688,-699.31,0.00021095,2]
[371568369,1752357064698,-995.78,0.00021095,2]
[371568371,1752357064708,-648.79,0.00021095,2]
[371568373,1752357064718,-647.47,0.00021095,2]
[371568375,1752357064727,-1247.94,0.00021095,2]
[371568377,1752357064736,-813.18,0.00021095,2]
[371568379,1752357064746,-561.31,0.00021095,2]
[371568381,1752357064755,-460.31,0.00021095,2]
[371568383,1752357064765,-470.2,0.00021095,2]
[371568385,1752357064775,-3681.33,0.00021095,2]
[371568387,1752357064784,-3587.3,0.00021095,2]
[371568389,1752357064793,-479.83,0.00021095,2]
[371568391,1752357064803,-2620.87,0.00021095,2]
[371568393,1752357064812,-666.55,0.00021095,2]
[371568395,1752357064821,-513.37,0.00021095,2]
[371568397,1752357064831,-2216.81,0.00021095,2]
[371568399,1752357064840,-518.4,0.00021095,2]
[371568401,1752357064850,-548.97,0.00021095,2]
[371568403,1752357064860,-460.0,0.00021095,2]
[371568405,1752357064869,-605.1,0.00021095,2]
[371568407,1752357064879,-3142.18,0.00021095,2]
[371568409,1752357064888,-460.0,0.00021095,2]
[371568411,1752357064898,-460.0,0.00021095,2]
[371568413,1752357064908,-5920.24,0.00021095,2]
[371568415,1752357064917,-875.58,0.00021095,2]
[371568417,1752357064927,-556.21,0.00021095,2]
[371568419,1752357064936,-5429.91,0.00021095,2]
[371568421,1752357064946,-460.0,0.00021095,2]
[371568423,1752357064956,-460.0,0.00021095,2]
[371568425,1752357064966,-460.0,0.00021095,2]
[371568427,1752357064975,-249.37626,0.00021095,2]
[371568429,1752357064985,-460.0,0.00021095,2]
[371568431,1752357064994,-249.37626,0.00021095,2]
[371568433,1752357065004,-634.32,0.00021095,2]
[371568435,1752357065013,-1846.78,0.00021095,2]
[371568437,1752357065023,-151.0,0.00021096,2]
[371568439,1752357065032,-4500.0,0.00021156,2]
[371568440,1752357065042,-1469.2124395,0.00021196,2]
[371568442,1752357065051,-5870.97290823,0.00021196,2]
[371568445,1752357065061,-619.67156755,0.00021196,2]
[371568447,1752357065070,-2478.68627021,0.00021196,2]
[371568449,1752357065079,-5577.04410798,0.00021196,2]
[371568450,1752357065089,-221.0,0.00021213,2]
[371568452,1752357065099,-3924.06288853,0.00021245,4]
[371568454,1752357065109,-151.0,0.00021245,2]
[371568457,1752357065118,-387.6,0.00021369,2]
[371568459,1752357065128,-460.0,0.00021369,2]
[371568461,1752357065138,-598.62,0.00021369,2]
[371568463,1752357065147,-151.0,0.00021369,2]
[371568465,1752357065158,-151.0,0.00021369,2]
[371568467,1752357065167,-460.0,0.00021369,2]
[371568469,1752357065177,-1796.12,0.00021369,2]
[371568470,1752357065186,-460.0,0.00021369,2]
[371568472,1752357065196,-1833.61,0.00021369,2]
[371568474,1752357065206,-368.105322,0.00021369,2]
[371568476,1752357065220,-368.105322,0.00021369,2]
[371568478,1752357065230,-460.0,0.00021369,2]
[371568480,1752357065239,-3698.67,0.00021369,2]
[371568482,1752357065249,-726.0,0.00021369,2]
[371568484,1752357065260,-2274.87,0.00021369,2]
[371568486,1752357065270,-699.31,0.00021369,2]
[371568488,1752357065279,-995.78,0.00021369,2]
[371568491,1752357065290,-151.0,0.00021369,2]
[371568492,1752357065300,-648.79,0.00021369,2]
[371568494,1752357065309,-647.47,0.00021369,2]
[371568496,1752357065319,-1247.94,0.00021369,2]
[371568498,1752357065328,-813.18,0.00021369,2]
[371568501,1752357065338,-561.31,0.00021369,2]
[371568502,1752357065347,-460.31,0.00021369,2]
[371568504,1752357065357,-470.2,0.00021369,2]
[371568507,1752357065367,-3681.33,0.00021369,2]
[371568509,1752357065376,-3587.3,0.00021369,2]
[371568511,1752357065385,-479.83,0.00021369,2]
[371568514,1752357065404,-2620.87,0.00021369,2]
[371568516,1752357065415,-666.55,0.00021369,2]
[371568518,1752357065425,-513.37,0.00021369,2]
[371568520,1752357065434,-2216.81,0.00021369,2]
[371568522,1752357065444,-518.4,0.00021369,2]
[371568524,1752357065455,-548.97,0.00021369,2]
[371568526,1752357065465,-460.0,0.00021369,2]
[371568528,1752357065478,-605.1,0.00021369,2]
[371568530,1752357065488,-3142.18,0.00021369,2]
[371568532,1752357065497,-460.0,0.00021369,2]
[371568534,1752357065507,-593.0,0.00021369,2]
[371568536,1752357065516,-5920.24,0.00021369,2]
[371568538,1752357065526,-875.58,0.00021369,2]
[371568540,1752357065536,-556.21,0.00021369,2]
[371568542,1752357065546,-5429.91,0.00021369,2]
[371568544,1752357065555,-460.0,0.00021369,2]
[371568546,1752357065565,-460.0,0.00021369,2]
[371568548,1752357065574,-460.0,0.00021369,2]
[371568550,1752357065584,-634.32,0.00021369,2]
[371568552,1752357065593,-1846.78,0.00021369,2]
[371568555,1752357065603,-151.0,0.0002137,2]
[371568557,1752357065613,-151.0,0.0002137,2]
[371568558,1752357065622,-151.0,0.0002137,2]
[371568560,1752357065632,-151.0,0.0002137,2]
[371568562,1752357065643,-151.0,0.0002137,2]
[371568564,1752357065652,-151.0,0.0002137,2]
[371568566,1752357065662,-151.0,0.0002137,2]
[371568568,1752357065671,-151.0,0.00021374,2]
[371568570,1752357065680,-151.0,0.00021374,2]
[371568573,1752357065690,-151.0,0.00021374,2]
[371568575,1752357065699,-9904.83033578,0.00021381,2]
[371568577,1752357065710,-221.648769,0.00021404,3]
[371568579,1752357065719,-151.0,0.00021444,2]
[371568581,1752357065728,-151.0,0.00021444,2]
[371568583,1752357065738,-151.0,0.00021444,2]
[371568585,1752357065748,-151.0,0.00021444,2]
[371568587,1752357065757,-155.609801,0.00021444,2]
[371568589,1752357065766,-264.189425,0.00021444,2]
[371568591,1752357065776,-264.189425,0.00021444,2]
[371568593,1752357065786,-151.0,0.00021444,2]
[371568595,1752357065796,-151.0,0.00021444,2]
[371568597,1752357065807,-154.823331,0.00021444,2]
[371568599,1752357065817,-151.0,0.00021444,2]
[371568601,1752357065826,-1262.657327,0.00021444,2]
[371568603,1752357065836,-1262.657327,0.00021444,2]
[371568605,1752357065846,-479.491969,0.00021444,2]
[371568607,1752357065855,-479.491969,0.00021444,2]
[371568609,1752357065864,-151.0,0.00021446,5]
[371568611,1752357065874,-630.0,0.00021454,2]
[371568613,1752357065883,-459.386214,0.00021461,4]
[371568615,1752357065892,-5502.71686863,0.00021479,2]
[371568617,1752357065900,-247.0,0.00021498,2]
[371568619,1752357065910,-1033.0,0.00021507,2]
[371568622,1752357065920,-83876.37049579,0.00021545,2]
[371568624,1752357065930,-151.0,0.00021545,2]
[371568626,1752357065940,-151.0,0.00021545,2]
[371568628,1752357065949,-151.0,0.00021545,2]
[371568630,1752357065959,-151.0,0.00021545,2]
[371568632,1752357065969,-151.0,0.00021545,2]
[371568634,1752357065978,-151.0,0.00021545,2]
[371568636,1752357065987,-151.0,0.00021545,2]
[371568638,1752357065996,-151.0,0.00021545,2]
[371568640,1752357066006,-208.720933,0.00021545,2]
[371568642,1752357066015,-208.720933,0.00021545,2]
[371568644,1752357066024,-151.0,0.00021545,2]
[371568646,1752357066033,-151.0,0.00021545,2]
[371568655,1752357066157,-151.0,0.00021545,2]
[371568656,1752357066175,-151.0,0.00021545,2]
[371568657,1752357066185,-151.0,0.00021545,2]
[371568658,1752357066195,-151.0,0.00021545,2]
[371568659,1752357066204,-151.0,0.00021545,2]
[371568660,1752357066218,-151.0,0.00021545,2]
[371568662,1752357066227,-151.0,0.00021545,2]
[371568664,1752357066236,-151.0,0.00021545,2]
[371568666,1752357066246,-151.0,0.00021545,2]
[371568668,1752357066255,-151.0,0.00021545,2]
[371568670,1752357066265,-1155.207518,0.00021545,2]
[371568672,1752357066274,-1155.207518,0.00021545,2]
[371568674,1752357066286,-151.0,0.00021545,2]
[371568676,1752357066295,-151.0,0.00021545,2]
[371568678,1752357066304,-151.0,0.00021545,2]
[371568680,1752357066314,-158.938451,0.00021545,2]
[371568682,1752357066324,-158.938451,0.00021545,2]
[371568684,1752357066334,-151.0,0.00021545,2]
[371568687,1752357066344,-1074.333574,0.00021545,2]
[371568688,1752357066353,-1074.333574,0.00021545,2]
[371568691,1752357066363,-151.0,0.00021545,2]
[371568693,1752357066372,-765.143976,0.00021545,2]
[371568694,1752357066383,-765.143976,0.00021545,2]
[371568695,1752357066397,-249.37626,0.00021545,2]
[371568696,1752357066406,-249.37626,0.00021545,2]
[371568697,1752357066416,-3924.06288853,0.00021555,5]
[371568698,1752357066425,-174.46404101,0.00021573,2]
[371568699,1752357066434,-151.0,0.00021597,2]
[371568700,1752357066443,-151.0,0.00021597,2]
[371568701,1752357066452,-368.105322,0.00021597,2]
[371568702,1752357066462,-368.105322,0.00021597,2]
[371568703,1752357066472,-151.0,0.000216,4]
[371568704,1752357066481,-460.0,0.00021643,2]
[371568705,1752357066491,-598.62,0.00021643,2]
[371568706,1752357066500,-460.0,0.00021643,2]
[371568707,1752357066509,-1796.12,0.00021643,2]
[371568708,1752357066519,-460.0,0.00021643,2]
[371568709,1752357066528,-1833.61,0.00021643,2]
[371568710,1752357066537,-471.15,0.00021643,2]
[371568711,1752357066546,-3698.67,0.00021643,2]
[371568712,1752357066556,-726.0,0.00021643,2]
[371568713,1752357066565,-2274.87,0.00021643,2]
[371568714,1752357066575,-699.31,0.00021643,2]
[371568715,1752357066584,-995.78,0.00021643,2]
[371568716,1752357066594,-648.79,0.00021643,2]
[371568717,1752357066603,-647.47,0.00021643,2]
[371568718,1752357066613,-1247.94,0.00021643,2]
[371568719,1752357066624,-813.18,0.00021643,2]
[371568720,1752357066634,-561.31,0.00021643,2]
[371568721,1752357066643,-460.31,0.00021643,2]
[371568722,1752357066653,-470.2,0.00021643,2]
[371568723,1752357066663,-3681.33,0.00021643,2]
[371568724,1752357066672,-3587.3,0.00021643,2]
[371568725,1752357066682,-479.83,0.00021643,2]
[371568726,1752357066693,-2620.87,0.00021643,2]
[371568727,1752357066702,-666.55,0.00021643,2]
[371568728,1752357066713,-513.37,0.00021643,2]
[371568729,1752357066722,-2216.81,0.00021643,2]
[371568730,1752357066731,-518.4,0.00021643,2]
[371568731,1752357066741,-548.97,0.00021643,2]
[371568732,1752357066750,-605.1,0.00021643,2]
[371568733,1752357066760,-3142.18,0.00021643,2]
[371568734,1752357066769,-542.06,0.00021643,2]
[371568735,1752357066778,-5920.24,0.00021643,2]
[371568736,1752357066787,-875.58,0.00021643,2]
[371568737,1752357066797,-556.21,0.00021643,2]
[371568738,1752357066807,-5429.91,0.00021643,2]
[371568739,1752357066816,-230.8253759,0.00021643,2]
[371568740,1752357066826,-453.81364089,0.00021643,2]
[371568741,1752357066835,-460.0,0.00021643,2]
[371568742,1752357066844,-634.32,0.00021643,2]
[371568743,1752357066854,-1846.78,0.00021643,2]
[371568744,1752357066863,-151.0,0.00021644,2]
[371568745,1752357066872,-1262.657327,0.00021644,2]
[371568746,1752357066880,-1262.657327,0.00021644,2]
[371568747,1752357066889,-479.491969,0.00021644,2]
[371568748,1752357066899,-479.491969,0.00021644,2]
[371568749,1752357066908,-3353.31485311,0.00021646,2]
[371568750,1752357066917,-4559.0,0.00021657,2]
[371568751,1752357066926,-223.0315306,0.00021696,2]
[371568752,1752357066936,-151.0,0.000217,2]
[371568753,1752357066945,-151.0,0.000217,2]
[371568754,1752357066955,-151.0,0.000217,2]
[371568755,1752357066964,-301.60672,0.000217,2]
[371568756,1752357066973,-264.189425,0.000217,2]
[371568757,1752357066983,-264.189425,0.000217,2]
[371568758,1752357066992,-151.0,0.000217,2]
[371568759,1752357067002,-151.0,0.000217,2]
[371568760,1752357067011,-2312.28533594,0.00021704,2]
[371568761,1752357067021,-221.648769,0.00021762,5]
[371568762,1752357067030,-4705.72,0.000218,2]
[371568763,1752357067039,-842.53,0.000218,2]
[371568764,1752357067048,-34784.13,0.000218,2]
[371568765,1752357067059,-168.0,0.00021803,2]
[371568766,1752357067068,-3924.06288853,0.00021866,6]
[371568767,1752357067078,-151.0,0.00021897,5]
[371568768,1752357067087,-221.648769,0.00021908,5]
[371568769,1752357067096,-460.0,0.00021917,2]
[371568770,1752357067106,-598.62,0.00021917,2]
[371568771,1752357067116,-460.0,0.00021917,2]
[371568772,1752357067126,-460.0,0.00021917,2]
[371568773,1752357067136,-1796.12,0.00021917,2]
[371568774,1752357067145,-1833.61,0.00021917,2]
[371568775,1752357067155,-3698.67,0.00021917,2]
[371568776,1752357067165,-726.0,0.00021917,2]
[371568777,1752357067174,-2274.87,0.00021917,2]
[371568778,1752357067184,-699.31,0.00021917,2]
[371568779,1752357067194,-995.78,0.00021917,2]
[371568780,1752357067203,-648.79,0.00021917,2]
[371568781,1752357067216,-647.47,0.00021917,2]
[371568782,1752357067225,-1247.94,0.00021917,2]
[371568783,1752357067235,-813.18,0.00021917,2]
[371568784,1752357067244,-561.31,0.00021917,2]
[371568785,1752357067255,-460.31,0.00021917,2]
[371568786,1752357067264,-470.2,0.00021917,2]
[371568787,1752357067274,-3681.33,0.00021917,2]
[371568788,1752357067283,-3587.3,0.00021917,2]
[371568789,1752357067295,-479.83,0.00021917,2]
[371568790,1752357067305,-2620.87,0.00021917,2]
[371568791,1752357067315,-666.55,0.00021917,2]
[371568792,1752357067324,-513.37,0.00021917,2]
[371568793,1752357067337,-2216.81,0.00021917,2]
[371568794,1752357067347,-518.4,0.00021917,2]
[371568795,1752357067357,-548.97,0.00021917,2]
[371568796,1752357067367,-605.1,0.00021917,2]
[371568797,1752357067377,-3142.18,0.00021917,2]
[371568798,1752357067386,-5920.24,0.00021917,2]
[371568799,1752357067396,-875.58,0.00021917,2]
[371568800,1752357067406,-556.21,0.00021917,2]
[371568801,1752357067415,-5429.91,0.00021917,2]
[371568802,1752357067425,-172.27,0.00021917,2]
[371568803,1752357067434,-634.32,0.00021917,2]
[371568804,1752357067444,-151.0,0.00021918,2]
[371568805,1752357067454,-189.78124,0.00021922,7]
[371568806,1752357067464,-189.78124,0.00021922,7]
[371568807,1752357067474,-168.0,0.00021953,2]
[371568808,1752357067483,-177.0,0.00021991,2]
[371568809,1752357067493,-5502.71686863,0.00021994,2]
[371568810,1752357067502,-9999.99999982,0.00022,2]
[371568811,1752357067512,-765.143976,0.00022013,7]
[371568812,1752357067523,-765.143976,0.00022013,7]
[371568813,1752357067532,-177.0,0.00022014,2]
[371568814,1752357067542,-600.0,0.0002204,2]
[371568815,1752357067552,-600.0,0.0002204,2]
[371568816,1752357067563,-228.34512735,0.0002204,2]
[371568817,1752357067573,-221.648769,0.00022046,3]
[371568818,1752357067582,-221.648769,0.00022054,5]
[371568819,1752357067592,-168.0,0.00022055,2]
[371568820,1752357067602,-221.648769,0.00022101,2]
[371568821,1752357067611,-5000.0,0.00022103,2]
[371568822,1752357067621,-154.41117971,0.00022128,2]
[371568823,1752357067631,-600.0,0.0002214,2]
[371568824,1752357067641,-257.00707641,0.0002214,2]
[371568825,1752357067651,-177.0,0.00022145,2]
[371568826,1752357067661,-1033.0,0.00022151,2]
[371568827,1752357067681,-168.0,0.0002217,2]
[371568828,1752357067697,-3924.06288853,0.00022176,6]
[371568829,1752357067709,-282.12,0.00022191,2]
[371568830,1752357067719,-598.62,0.00022191,2]
[371568831,1752357067728,-151.0,0.00022191,7]
[371568832,1752357067738,-241.8,0.00022191,2]
[371568833,1752357067747,-460.0,0.00022191,2]
[371568834,1752357067757,-1833.61,0.00022191,2]
[371568835,1752357067767,-1796.12,0.00022191,2]
[371568836,1752357067777,-3698.67,0.00022191,2]
[371568837,1752357067787,-726.0,0.00022191,2]
[371568838,1752357067797,-2274.87,0.00022191,2]
[371568839,1752357067808,-699.31,0.00022191,2]
[371568840,1752357067818,-995.78,0.00022191,2]
[371568841,1752357067827,-648.79,0.00022191,2]
[371568842,1752357067838,-647.47,0.00022191,2]
[371568843,1752357067847,-1247.94,0.00022191,2]
[371568844,1752357067857,-813.18,0.00022191,2]
[371568845,1752357067866,-561.31,0.00022191,2]
[371568846,1752357067875,-460.31,0.00022191,2]
[371568847,1752357067886,-470.2,0.00022191,2]
[371568848,1752357067896,-3681.33,0.00022191,2]
[371568849,1752357067907,-3587.3,0.00022191,2]
[371568850,1752357067916,-479.83,0.00022191,2]
[371568851,1752357067926,-2620.87,0.00022191,2]
[371568852,1752357067936,-666.55,0.00022191,2]
[371568853,1752357067946,-513.37,0.00022191,2]
[371568854,1752357067956,-2216.81,0.00022191,2]
[371568855,1752357067966,-518.4,0.00022191,2]
[371568856,1752357067976,-548.97,0.00022191,2]
[371568857,1752357067986,-605.1,0.00022191,2]
[371568858,1752357067996,-3142.18,0.00022191,2]
[371568859,1752357068101,-5920.24,0.00022191,2]
[371568860,1752357068119,-875.58,0.00022191,2]
[371568861,1752357068129,-556.21,0.00022191,2]
[371568862,1752357068139,-5429.91,0.00022191,2]
[371568863,1752357068150,-249.37626,0.00022191,7]
[371568864,1752357068159,-249.37626,0.00022191,7]
[371568865,1752357068169,-634.32,0.00022191,2]
[371568866,1752357068179,-156.527578,0.00022192,7]
[371568867,1752357068188,-151.0,0.00022192,7]
[371568868,1752357068198,-158.938451,0.00022192,7]
[371568869,1752357068207,-158.938451,0.00022192,7]
[371568870,1752357068220,-1074.333574,0.00022192,7]
[371568871,1752357068229,-1074.333574,0.00022192,7]
[371568872,1752357068239,-221.648769,0.00022199,5]
[371568873,1752357068248,-190441.2373991,0.000222,2]
[371568874,1752357068259,-571.33805094,0.0002224,2]
[371568875,1752357068268,-177.0,0.00022259,2]
[371568876,1752357068277,-177.0,0.0002229,2]
[371568877,1752357068288,-151.0,0.000223,7]
[371568878,1752357068298,-151.0,0.000223,7]
[371568879,1752357068307,-151.0,0.000223,7]
[371568880,1752357068316,-151.0,0.000223,7]
[371568881,1752357068326,-151.0,0.000223,7]
[371568882,1752357068336,-151.0,0.000223,7]
[371568883,1752357068345,-208.720933,0.000223,7]
[371568884,1752357068355,-208.720933,0.000223,7]
[371568885,1752357068364,-151.0,0.000223,9]
[371568886,1752357068374,-800.0,0.00022326,2]
[371568887,1752357068384,-221.648769,0.00022345,5]
[371568888,1752357068394,-1033.0,0.00022346,2]
[371568889,1752357068403,-151.0,0.00022348,5]
[371568890,1752357068412,-160.0,0.000224,3]
[371568891,1752357068423,-836.80557099,0.000224,3]
[371568892,1752357068432,-1971.403377,0.000224,2]
[371568893,1752357068441,-177.0,0.0002242,2]
[371568894,1752357068451,-177.0,0.00022424,2]
[371568895,1752357068460,-221.648769,0.0002243,10]
[371568896,1752357068470,-19208.30135738,0.00022433,2]
[371568897,1752357068480,-151.0,0.00022433,7]
[371568898,1752357068490,-368.105322,0.00022433,7]
[371568899,1752357068500,-368.105322,0.00022433,7]
[371568900,1752357068509,-800.0,0.00022446,2]
[371568901,1752357068519,-598.62,0.00022465,2]
[371568902,1752357068528,-423.96,0.00022465,2]
[371568903,1752357068537,-1833.61,0.00022465,2]
[371568904,1752357068547,-1796.12,0.00022465,2]
[371568905,1752357068556,-3698.67,0.00022465,2]
[371568906,1752357068565,-726.0,0.00022465,2]
[371568907,1752357068574,-2274.87,0.00022465,2]
[371568908,1752357068584,-699.31,0.00022465,2]
[371568909,1752357068594,-995.78,0.00022465,2]
[371568910,1752357068603,-648.79,0.00022465,2]
[371568911,1752357068612,-647.47,0.00022465,2]
[371568912,1752357068622,-1247.94,0.00022465,2]
[371568913,1752357068631,-813.18,0.00022465,2]
[371568914,1752357068641,-561.31,0.00022465,2]
[371568915,1752357068650,-460.31,0.00022465,2]
[371568916,1752357068661,-470.2,0.00022465,2]
[371568917,1752357068670,-3681.33,0.00022465,2]
[371568918,1752357068680,-3587.3,0.00022465,2]
[371568919,1752357068691,-479.83,0.00022465,2]
[371568920,1752357068700,-2620.87,0.00022465,2]
[371568921,1752357068710,-666.55,0.00022465,2]
[371568922,1752357068720,-513.37,0.00022465,2]
[371568923,1752357068730,-2216.81,0.00022465,2]
[371568924,1752357068739,-518.4,0.00022465,2]
[371568926,1752357068750,-548.97,0.00022465,2]
[371568927,1752357068761,-605.1,0.00022465,2]
[371568928,1752357068771,-3142.18,0.00022465,2]
[371568929,1752357068780,-5920.24,0.00022465,2]
[371568930,1752357068790,-875.58,0.00022465,2]
[371568931,1752357068801,-556.21,0.00022465,2]
[371568932,1752357068811,-5429.91,0.00022465,2]
[371568933,1752357068820,-634.32,0.00022465,2]
[371568934,1752357068830,-300.0,0.00022466,2]
[371568935,1752357068839,-250.0,0.00022466,2]
[371568936,1752357068849,-151.0,0.00022466,7]
[371568937,1752357068859,-151.0,0.00022466,7]